fUSD/lending_fUSD_20251206
["ID","MTS","AMOUNT","RATE_DAILY","PERIOD"]
[396540442,1765043452030,-500.0,0.00016438,2]
[396540443,1765043452039,-155.544535,0.00016438,2]
[396540444,1765043452049,-500.0,0.00016438,2]
[396540445,1765043452058,-500.0,0.00016438,2]
[396540446,1765043452068,-502.05482194,0.00016438,2]
[396540447,1765043452078,-500.0,0.00016438,2]
[396540448,1765043452088,-500.0,0.00016438,2]
[396540449,1765043452100,-501.66499867,0.00016438,2]
[396540450,1765043452110,-500.0,0.00016438,2]
[396540451,1765043452120,-500.64940814,0.00016438,2]
[396540452,1765043452129,-625.51,0.00016438,2]
[396540453,1765043452139,-500.0,0.00016438,2]
[396540454,1765043452148,-500.0,0.00016438,2]
[396540455,1765043452157,-2883.03,0.00016438,2]
[396540456,1765043452168,-500.0,0.00016438,2]
[396540457,1765043452177,-151.0,0.00016438,2]
[396540458,1765043452187,-502.28475495,0.00016438,2]
[396540459,1765043452197,-2920.42,0.00016438,2]
[396540460,1765043452207,-1151.98,0.00016438,2]
[396540461,1765043452216,-500.0,0.00016438,2]
[396540462,1765043452226,-500.0,0.00016438,2]
[396540463,1765043452235,-500.0,0.00016438,2]
[396540464,1765043452245,-500.0,0.00016438,2]
[396540465,1765043452256,-500.0,0.00016438,2]
[396540466,1765043452265,-888.2,0.00016438,2]
[396540467,1765043452275,-743.77,0.00016438,2]
[396540468,1765043452285,-500.0,0.00016438,2]
[396540469,1765043452294,-500.0,0.00016438,2]
[396540470,1765043452304,-500.0,0.00016438,2]
[396540471,1765043452313,-500.0,0.00016438,2]
[396540472,1765043452323,-500.0,0.00016438,2]
[396540473,1765043452333,-500.0,0.00016438,2]
[396540474,1765043452343,-500.0,0.00016438,2]
[396540475,1765043452353,-500.0,0.00016438,2]
[396540476,1765043452362,-2606.31,0.00016438,2]
[396540477,1765043452371,-500.0,0.00016438,2]
[396540478,1765043452381,-500.0,0.00016438,2]
[396540479,1765043452391,-1564.32,0.00016438,2]
[396540480,1765043452401,-673.27,0.00016438,2]
[396540481,1765043452410,-500.0,0.00016438,2]
[396540482,1765043452420,-1812.98,0.00016438,2]
[396540483,1765043452430,-1394.61,0.00016438,2]
[396540484,1765043452439,-796.02,0.00016438,2]
[396540485,1765043452449,-500.87386522,0.00016438,2]
[396540486,1765043452461,-502.4043925,0.00016438,2]
[396540487,1765043452472,-151.0,0.00016438,2]
[396540488,1765043452482,-500.0,0.00016438,2]
[396540489,1765043452493,-2640.44,0.00016438,2]
[396540490,1765043452503,-151.0,0.00016438,2]
[396540491,1765043452513,-151.0,0.00016438,2]
[396540492,1765043452522,-873.54,0.00016438,2]
[396540493,1765043452530,-500.0,0.00016438,2]
[396540494,1765043452539,-599.49,0.00016438,2]
[396540495,1765043452548,-500.0,0.00016438,2]
[396540496,1765043452556,-496.68323276,0.00016438,2]
[396540497,1765043452565,-500.0,0.00016438,2]
[396540498,1765043452575,-1186.61,0.00016438,2]
[396540499,1765043452584,-391.64404681,0.00016438,2]
[396540500,1765043452594,-500.0,0.00016438,2]
[396540501,1765043452604,-791.62,0.00016438,2]
[396540502,1765043452618,-500.0,0.00016438,2]
[396540503,1765043452628,-568.52588495,0.00016438,2]
[396540504,1765043452638,-500.0,0.00016438,2]
[396540505,1765043452647,-500.0,0.00016438,2]
[396540506,1765043452656,-500.0,0.00016438,2]
[396540507,1765043452666,-622.76,0.00016438,2]
[396540508,1765043452675,-590.52,0.00016438,2]
[396540509,1765043452684,-537.05423373,0.00016438,2]
[396540510,1765043452694,-500.0,0.00016438,2]
[396540511,1765043452705,-500.0,0.00016438,2]
[396540512,1765043452715,-1703.69,0.00016438,2]
[396540513,1765043452725,-500.0,0.00016438,2]
[396540514,1765043452735,-500.0,0.00016438,2]
[396540515,1765043452745,-502.28,0.00016438,2]
[396540516,1765043452755,-500.0,0.00016438,2]
[396540517,1765043452765,-500.0,0.00016438,2]
[396540518,1765043452774,-687.43,0.00016438,2]
[396540519,1765043452784,-10454.04,0.00016438,2]
[396540520,1765043452793,-2447.23,0.00016438,2]
[396540521,1765043452803,-794.42655182,0.00016463,2]
[396540522,1765043452812,-542.0,0.0001647,2]
[396540523,1765043452823,-4595.0,0.00016475,2]
[396540524,1765043452832,-3660.74904153,0.00016488,2]
[396540525,1765043452842,-794.42655182,0.00016525,2]
[396540526,1765043452852,-158.25560067,0.00016562,2]
[396540527,1765043452861,-200.0,0.00016585,2]
[396540528,1765043452873,-794.42655182,0.00016588,2]
[396540529,1765043452885,-3660.74904153,0.00016591,2]
[396540530,1765043452895,-1105.02,0.00016603,2]
[396540531,1765043452905,-425.93,0.00016603,2]
[396540532,1765043452915,-181.03,0.00016603,2]
[396540533,1765043452926,-732.77550042,0.00016612,2]
[396540534,1765043452935,-3289.77881658,0.00016612,2]
[396540535,1765043453607,-658.47843359,0.00016438,2]
[396540536,1765043453628,-1111.36179119,0.00016438,2]
[396540537,1765043453665,-894.06977522,0.00016438,2]
[396540538,1765043453675,-656.66261005,0.00016612,2]
[396540539,1765043454410,-500.0,0.00016438,2]
[396540540,1765043454423,-6101.00697337,0.00016612,2]
[396540541,1765043454435,-500.0,0.00016619,2]
[396540542,1765043454446,-794.42655182,0.0001665,2]
[396540543,1765043454459,-1000.0,0.00016669,3]
[396540544,1765043454471,-3660.74904153,0.00016694,2]
[396540545,1765043454483,-501.23667948,0.00016711,2]
[396540546,1765043454494,-500.62020539,0.00016711,2]
[396540547,1765043454506,-500.0,0.00016711,2]
[396540548,1765043454517,-500.0,0.00016711,2]
[396540549,1765043454529,-500.0,0.00016711,2]
[396540550,1765043454541,-1582.66,0.00016711,2]
[396540551,1765043454552,-1582.66,0.00016711,2]
[396540552,1765043454565,-1582.66,0.00016711,2]
[396540553,1765043454577,-500.0,0.00016712,2]
[396540554,1765043454588,-500.0,0.00016712,2]
[396540555,1765043454600,-500.85280806,0.00016712,2]
[396540556,1765043454611,-2712.83,0.00016712,2]
[396540557,1765043454622,-887.78,0.00016712,2]
[396540558,1765043454632,-500.0,0.00016712,2]
[396540559,1765043454644,-500.0,0.00016712,2]
[396540560,1765043454656,-500.0,0.00016712,2]
[396540561,1765043454669,-500.0,0.00016712,2]
[396540562,1765043454682,-500.0,0.00016712,2]
[396540563,1765043454693,-502.67369325,0.00016712,2]
[396540564,1765043454704,-496.64508385,0.00016712,2]
[396540565,1765043454715,-500.0,0.00016712,2]
[396540566,1765043454727,-500.0,0.00016712,2]
[396540567,1765043454737,-500.0,0.00016712,2]
[396540568,1765043454748,-500.0,0.00016712,2]
[396540569,1765043454760,-500.0,0.00016712,2]
[396540570,1765043454771,-3000.47,0.00016712,2]
[396540571,1765043454783,-500.0,0.00016712,2]
[396540572,1765043454796,-500.0,0.00016712,2]
[396540573,1765043454807,-500.0,0.00016712,2]
[396540574,1765043454818,-151.0,0.00016712,2]
[396540575,1765043454828,-715.4,0.00016712,2]
[396540576,1765043454839,-151.0,0.00016712,2]
[396540577,1765043454848,-500.0,0.00016712,2]
[396540578,1765043454859,-500.0,0.00016712,2]
[396540579,1765043454873,-500.0,0.00016712,2]
[396540580,1765043454885,-500.0,0.00016712,2]
[396540581,1765043454896,-500.0,0.00016712,2]
[396540582,1765043454908,-158.146366,0.00016712,2]
[396540583,1765043454919,-155.22092,0.00016712,2]
[396540584,1765043454930,-500.0,0.00016712,2]
[396540585,1765043454942,-500.0,0.00016712,2]
[396540586,1765043454956,-151.0,0.00016712,2]
[396540587,1765043454966,-500.0,0.00016712,2]
[396540588,1765043454987,-151.0,0.00016712,2]
[396540589,1765043454999,-1283.54,0.00016712,2]
[396540590,1765043455010,-500.0,0.00016712,2]
[396540591,1765043455021,-151.0,0.00016712,2]
[396540592,1765043455031,-2472.34,0.00016712,2]
[396540593,1765043455042,-151.0,0.00016712,2]
[396540594,1765043455052,-500.0,0.00016712,2]
[396540595,1765043455063,-500.0,0.00016712,2]
[396540596,1765043455073,-500.0,0.00016712,2]
[396540597,1765043455084,-500.0,0.00016712,2]
[396540598,1765043455095,-509.65331527,0.00016712,2]
[396540599,1765043455105,-500.0,0.00016712,2]
[396540600,1765043455115,-500.0,0.00016712,2]
[396540601,1765043455126,-500.0,0.00016712,2]
[396540602,1765043455139,-151.0,0.00016712,2]
[396540603,1765043455150,-562.38,0.00016712,2]
[396540604,1765043455160,-502.94219986,0.00016712,2]
[396540605,1765043455171,-500.0,0.00016712,2]
[396540606,1765043455182,-500.0,0.00016712,2]
[396540607,1765043455192,-500.0,0.00016712,2]
[396540608,1765043455203,-500.0,0.00016712,2]
[396540609,1765043455214,-500.0,0.00016712,2]
[396540610,1765043455224,-523.14408812,0.00016712,2]
[396540611,1765043455236,-500.0,0.00016712,2]
[396540612,1765043455247,-500.0,0.00016712,2]
[396540613,1765043455263,-822.64,0.00016712,2]
[396540614,1765043455274,-500.0,0.00016712,2]
[396540615,1765043455285,-500.0,0.00016712,2]
[396540616,1765043455296,-597.26,0.00016712,2]
[396540617,1765043455311,-500.0,0.00016712,2]
[396540618,1765043455322,-500.0,0.00016712,2]
[396540619,1765043455334,-200.67902806,0.00016712,2]
[396540620,1765043455345,-500.0,0.00016712,2]
[396540621,1765043455355,-2796.08,0.00016712,2]
[396540622,1765043455366,-500.0,0.00016712,2]
[396540623,1765043455380,-500.0,0.00016712,2]
[396540624,1765043455393,-500.0,0.00016712,2]
[396540625,1765043455404,-502.78036876,0.00016712,2]
[396540626,1765043455415,-504.66141919,0.00016712,2]
[396540627,1765043455426,-500.0,0.00016712,2]
[396540628,1765043455437,-500.0,0.00016712,2]
[396540629,1765043455449,-151.0,0.00016712,2]
[396540630,1765043455460,-153.461024,0.00016712,2]
[396540631,1765043455471,-919.59,0.00016712,2]
[396540632,1765043455482,-151.0,0.00016712,2]
[396540633,1765043455493,-500.0,0.00016712,2]
[396540634,1765043455503,-500.0,0.00016712,2]
[396540635,1765043455514,-503.32435713,0.00016712,2]
[396540636,1765043455525,-500.0,0.00016712,2]
[396540637,1765043455535,-771.88,0.00016712,2]
[396540638,1765043455546,-500.0,0.00016712,2]
[396540639,1765043455557,-500.0,0.00016712,2]
[396540640,1765043455568,-155.254516,0.00016712,2]
[396540641,1765043455578,-503.72050651,0.00016712,2]
[396540642,1765043455589,-500.0,0.00016712,2]
[396540643,1765043455599,-570.53958287,0.00016712,2]
[396540644,1765043455610,-500.0,0.00016712,2]
[396540645,1765043455621,-504.93229034,0.00016712,2]
[396540646,1765043455632,-708.45,0.00016712,2]
[396540647,1765043455643,-500.0,0.00016712,2]
[396540648,1765043455655,-528.54,0.00016712,2]
[396540649,1765043455666,-500.0,0.00016712,2]
[396540650,1765043455676,-500.0,0.00016712,2]
[396540651,1765043455687,-1156.41,0.00016712,2]
[396540652,1765043455698,-500.0,0.00016712,2]
[396540653,1765043455709,-500.0,0.00016712,2]
[396540654,1765043455720,-2652.71,0.00016712,2]
[396540655,1765043455731,-500.0,0.00016712,2]
[396540656,1765043455743,-502.95977586,0.00016712,2]
[396540657,1765043455755,-585.33,0.00016712,2]
[396540658,1765043455767,-500.0,0.00016712,2]
[396540659,1765043455778,-500.0,0.00016712,2]
[396540660,1765043455790,-500.0,0.00016712,2]
[396540661,1765043455800,-151.0,0.00016712,2]
[396540662,1765043455811,-500.0,0.00016712,2]
[396540663,1765043455822,-500.0,0.00016712,2]
[396540664,1765043455833,-151.0,0.00016712,2]
[396540665,1765043455845,-574.64,0.00016712,2]
[396540666,1765043455856,-500.0,0.00016712,2]
[396540667,1765043455868,-500.0,0.00016712,2]
[396540668,1765043455884,-500.0,0.00016712,2]
[396540669,1765043455894,-500.0,0.00016712,2]
[396540670,1765043455906,-527.75,0.00016712,2]
[396540671,1765043455917,-500.0,0.00016712,2]
[396540672,1765043455928,-2243.78,0.00016712,2]
[396540673,1765043455939,-200.01314457,0.00016712,2]
[396540674,1765043456002,-342.18685543,0.00016712,2]
[396540675,1765043456013,-152.446769,0.00016712,2]
[396540676,1765043456024,-151.0,0.00016712,2]
[396540677,1765043456036,-151.0,0.00016712,2]
[396540678,1765043456047,-540.72999713,0.00016712,2]
[396540679,1765043456058,-180.75972269,0.00016712,2]
[396540680,1765043456071,-298.51436949,0.00016712,2]
[396540681,1765043456084,-532.00000002,0.00016712,2]
[396540682,1765043456142,-820.95209632,0.00016072,2]
[396540683,1765043456156,-265.96,0.00016072,2]
[396540684,1765043456168,-3620.08790368,0.00016072,2]
[396540685,1765043456180,-683.3431966,0.00016712,2]
[396540686,1765043456202,-939.4827112,0.00016712,2]
[396540687,1765043456213,-500.0,0.00016712,2]
[396540688,1765043456224,-151.0,0.00016712,2]
[396540689,1765043456234,-162.104544,0.00016712,2]
[396540690,1765043456245,-151.0,0.00016712,2]
[396540691,1765043456255,-500.0,0.00016712,2]
[396540692,1765043456266,-1285.9327448,0.00016712,2]
[396540693,1765043456280,-1182.8972552,0.00016712,2]
[396540694,1765043456290,-151.0,0.00016712,2]
[396540695,1765043456301,-525.88,0.00016712,2]
[396540696,1765043456312,-500.0,0.00016712,2]
[396540697,1765043456323,-500.0,0.00016712,2]
[396540698,1765043456334,-500.0,0.00016712,2]
[396540699,1765043456344,-500.0,0.00016712,2]
[396540700,1765043456355,-151.08377,0.00016712,2]
[396540701,1765043456365,-500.0,0.00016712,2]
[396540702,1765043456376,-500.0,0.00016712,2]
[396540703,1765043456386,-500.0,0.00016712,2]
[396540704,1765043456396,-500.0,0.00016712,2]
[396540705,1765043456408,-500.0,0.00016712,2]
[396540706,1765043456419,-517.98405605,0.00016712,2]
[396540707,1765043457734,-500.0,0.00016438,2]
[396540708,1765043457744,-2361.41594395,0.00016712,2]
[396540709,1765043457754,-149.85654746,0.00016712,2]
[396540710,1765043457871,-1.14345254,0.00016712,2]
[396540711,1765043457886,-2868.53,0.00016712,2]
[396540712,1765043457895,-151.0,0.00016712,2]
[396540713,1765043457905,-151.0,0.00016712,2]
[396540714,1765043457915,-151.0,0.00016712,2]
[396540715,1765043457924,-184.515552,0.00016712,2]
[396540716,1765043457934,-500.0,0.00016712,2]
[396540717,1765043457944,-500.0,0.00016712,2]
[396540718,1765043457954,-500.0,0.00016712,2]
[396540719,1765043457964,-151.0,0.00016712,2]
[396540720,1765043457973,-500.0,0.00016712,2]
[396540721,1765043457983,-151.0,0.00016712,2]
[396540722,1765043457992,-462.42954156,0.00016712,2]
[396540723,1765043458001,-500.0,0.00016712,2]
[396540724,1765043458011,-500.0,0.00016712,2]
[396540725,1765043458021,-151.0,0.00016712,2]
[396540726,1765043458031,-500.0,0.00016712,2]
[396540727,1765043458040,-500.0,0.00016712,2]
[396540728,1765043458050,-151.0,0.00016712,2]
[396540729,1765043458059,-151.0,0.00016712,2]
[396540730,1765043458068,-151.0,0.00016712,2]
[396540731,1765043458078,-500.0,0.00016712,2]
[396540732,1765043458088,-151.0,0.00016712,2]
[396540733,1765043458098,-500.0,0.00016712,2]
[396540734,1765043458107,-500.0,0.00016712,2]
[396540735,1765043458117,-151.0,0.00016712,2]
[396540736,1765043458127,-151.0,0.00016712,2]
[396540737,1765043458136,-500.0,0.00016712,2]
[396540738,1765043458146,-151.0,0.00016712,2]
[396540739,1765043458155,-503.62708329,0.00016712,2]
[396540740,1765043458164,-151.0,0.00016712,2]
[396540741,1765043458174,-2257.32,0.00016712,2]
[396540742,1765043458183,-500.0,0.00016712,2]
[396540743,1765043458193,-151.0,0.00016712,2]
[396540744,1765043458202,-569.27,0.00016712,2]
[396540745,1765043458212,-500.0,0.00016712,2]
[396540746,1765043458221,-151.0,0.00016712,2]
[396540747,1765043458231,-151.0,0.00016712,2]
[396540748,1765043458240,-500.0,0.00016712,2]
[396540749,1765043458250,-500.0,0.00016712,2]
[396540750,1765043458259,-500.0,0.00016712,2]
[396540751,1765043458269,-500.0,0.00016712,2]
[396540752,1765043458278,-502.99372778,0.00016712,2]
[396540753,1765043458288,-500.0,0.00016712,2]
[396540754,1765043458297,-500.0,0.00016712,2]
[396540755,1765043458307,-500.0,0.00016712,2]
[396540756,1765043458316,-174.596541,0.00016712,2]
[396540757,1765043458325,-2594.07,0.00016712,2]
[396540758,1765043458336,-500.0,0.00016712,2]
[396540759,1765043458345,-500.0,0.00016712,2]
[396540760,1765043458355,-500.0,0.00016712,2]
[396540761,1765043458364,-500.0,0.00016712,2]
[396540762,1765043458374,-500.0,0.00016712,2]
[396540763,1765043458383,-500.0,0.00016712,2]
[396540764,1765043458392,-500.0,0.00016712,2]
[396540765,1765043458402,-161.713293,0.00016712,2]
[396540766,1765043458411,-500.0,0.00016712,2]
[396540767,1765043458420,-500.0,0.00016712,2]
[396540768,1765043458429,-500.0,0.00016712,2]
[396540769,1765043458439,-501.89705233,0.00016712,2]
[396540770,1765043458448,-151.0,0.00016712,2]
[396540771,1765043458457,-151.0,0.00016712,2]
[396540772,1765043458467,-151.0,0.00016712,2]
[396540773,1765043458476,-151.0,0.00016712,2]
[396540774,1765043458486,-151.0,0.00016712,2]
[396540775,1765043458495,-207.299145,0.00016712,2]
[396540776,1765043458504,-505.6898512,0.00016712,2]
[396540777,1765043458513,-151.0,0.00016712,2]
[396540778,1765043458523,-500.0,0.00016712,2]
[396540779,1765043458532,-500.0,0.00016712,2]
[396540780,1765043458541,-500.0,0.00016712,2]
[396540781,1765043458550,-151.0,0.00016712,2]
[396540782,1765043458559,-500.0,0.00016712,2]
[396540783,1765043458569,-151.0,0.00016712,2]
[396540784,1765043458578,-500.0,0.00016712,2]
[396540785,1765043458587,-151.0,0.00016712,2]
[396540786,1765043458597,-201.417514,0.00016712,2]
[396540787,1765043458606,-500.0,0.00016712,2]
[396540788,1765043458616,-502.24009903,0.00016712,2]
[396540789,1765043458626,-527.41,0.00016712,2]
[396540790,1765043458636,-500.0,0.00016712,2]
[396540791,1765043458646,-500.0,0.00016712,2]
[396540792,1765043458656,-151.0,0.00016712,2]
[396540793,1765043458665,-151.0,0.00016712,2]
[396540794,1765043458676,-151.0,0.00016712,2]
[396540795,1765043458686,-151.0,0.00016712,2]
[396540796,1765043458695,-151.0,0.00016712,2]
[396540797,1765043458704,-151.0,0.00016712,2]
[396540798,1765043458714,-500.0,0.00016712,2]
[396540799,1765043458724,-562.21,0.00016712,2]
[396540800,1765043458733,-500.0,0.00016712,2]
[396540801,1765043458742,-500.0,0.00016712,2]
[396540802,1765043458751,-622.09784279,0.00016712,2]
[396540803,1765043458761,-500.0,0.00016712,2]
[396540804,1765043458770,-1280.16,0.00016712,2]
[396540805,1765043458780,-151.0,0.00016712,2]
[396540806,1765043458789,-500.0,0.00016712,2]
[396540807,1765043458799,-151.0,0.00016712,2]
[396540808,1765043458807,-500.0,0.00016712,2]
[396540809,1765043458817,-151.0,0.00016712,2]
[396540810,1765043458826,-151.0,0.00016712,2]
[396540811,1765043458835,-151.0,0.00016712,2]
[396540812,1765043458844,-504.10258814,0.00016712,2]
[396540813,1765043458853,-151.0,0.00016712,2]
[396540814,1765043458863,-3119.94,0.00016712,2]
[396540815,1765043458873,-161.907336,0.00016712,2]
[396540816,1765043458887,-500.0,0.00016712,2]
[396540817,1765043458896,-500.0,0.00016712,2]
[396540818,1765043458905,-500.0,0.00016712,2]
[396540819,1765043458916,-500.0,0.00016712,2]
[396540820,1765043458925,-2946.5,0.00016712,2]
[396540821,1765043458935,-3076.84,0.00016712,2]
[396540822,1765043458945,-500.0,0.00016712,2]
[396540823,1765043458955,-541.27461592,0.00016712,2]
[396540824,1765043458965,-501.32,0.00016712,2]
[396540825,1765043458975,-500.0,0.00016712,2]
[396540826,1765043458984,-151.0,0.00016712,2]
[396540827,1765043458993,-151.0,0.00016712,2]
[396540828,1765043459002,-759.07,0.00016712,2]
[396540829,1765043459012,-151.0,0.00016712,2]
[396540830,1765043459021,-162.091837,0.00016712,2]
[396540831,1765043459031,-151.0,0.00016712,2]
[396540832,1765043459040,-151.0,0.00016712,2]
[396540833,1765043459049,-151.0,0.00016712,2]
[396540834,1765043459059,-2374.98,0.00016712,2]
[396540835,1765043459068,-159.569903,0.00016712,2]
[396540836,1765043459078,-151.0,0.00016712,2]
[396540837,1765043459087,-159.569903,0.00016712,2]
[396540838,1765043459097,-151.0,0.00016712,2]
[396540839,1765043459106,-151.0,0.00016712,2]
[396540840,1765043459116,-151.0,0.00016712,2]
[396540841,1765043459126,-151.0,0.00016712,2]
[396540842,1765043459135,-151.0,0.00016712,2]
[396540843,1765043459144,-159.569903,0.00016712,2]
[396540844,1765043459153,-159.569903,0.00016712,2]
[396540845,1765043459162,-198.696158,0.00016712,2]
[396540846,1765043459172,-500.0,0.00016712,2]
[396540847,1765043459181,-500.0,0.00016712,2]
[396540848,1765043459190,-159.569903,0.00016712,2]
[396540849,1765043459200,-920.17,0.00016712,2]
[396540850,1765043459209,-159.569903,0.00016712,2]
[396540851,1765043459219,-159.569903,0.00016712,2]
[396540852,1765043459229,-500.0,0.00016712,2]
[396540853,1765043459238,-159.569903,0.00016712,2]
[396540854,1765043459247,-500.0,0.00016712,2]
[396540855,1765043459258,-500.0,0.00016712,2]
[396540856,1765043459268,-151.0,0.00016712,2]
[396540857,1765043459278,-274.000751,0.00016712,2]
[396540858,1765043459287,-151.0,0.00016712,2]
[396540859,1765043459296,-151.0,0.00016712,2]
[396540860,1765043459305,-500.0,0.00016712,2]
[396540861,1765043459314,-500.0,0.00016712,2]
[396540862,1765043459324,-151.0,0.00016712,2]
[396540863,1765043459333,-500.0,0.00016712,2]
[396540864,1765043459343,-708.92,0.00016712,2]
[396540865,1765043459352,-151.0,0.00016712,2]
[396540866,1765043459361,-151.0,0.00016712,2]
[396540867,1765043459371,-151.0,0.00016712,2]
[396540868,1765043459380,-151.0,0.00016712,2]
[396540869,1765043459390,-151.0,0.00016712,2]
[396540870,1765043459399,-151.0,0.00016712,2]
[396540871,1765043459409,-167.856479,0.00016712,2]
[396540872,1765043459419,-151.0,0.00016712,2]
[396540873,1765043459428,-151.0,0.00016712,2]
[396540874,1765043459438,-175.253121,0.00016712,2]
[396540875,1765043459447,-500.0,0.00016712,2]
[396540876,1765043459457,-522.882474,0.00016712,2]
[396540877,1765043459466,-500.0,0.00016712,2]
[396540878,1765043459475,-522.882474,0.00016712,2]
[396540879,1765043459485,-500.0,0.00016712,2]
[396540880,1765043459494,-2824.88,0.00016712,2]
[396540881,1765043459503,-522.882474,0.00016712,2]
[396540882,1765043459512,-500.0,0.00016712,2]
[396540883,1765043459523,-522.882474,0.00016712,2]
[396540884,1765043459533,-151.0,0.00016712,2]
[396540885,1765043459542,-151.0,0.00016712,2]
[396540886,1765043459551,-166.601312,0.00016712,2]
[396540887,1765043459560,-522.882474,0.00016712,2]
[396540888,1765043459570,-151.0,0.00016712,2]
[396540889,1765043459579,-522.882474,0.00016712,2]
[396540890,1765043459587,-151.0,0.00016712,2]
[396540891,1765043459597,-522.882474,0.00016712,2]
[396540892,1765043459607,-154.21033,0.00016712,2]
[396540893,1765043459616,-522.882474,0.00016712,2]
[396540894,1765043459625,-964.97,0.00016712,2]
[396540895,1765043459634,-160.335109,0.00016712,2]
[396540896,1765043459644,-500.0,0.00016712,2]
[396540897,1765043459653,-500.0,0.00016712,2]
[396540898,1765043459662,-500.0,0.00016712,2]
[396540899,1765043459671,-575.61,0.00016712,2]
[396540900,1765043459681,-151.0,0.00016712,2]
[396540901,1765043459690,-2816.8,0.00016712,2]
[396540902,1765043459699,-151.0,0.00016712,2]
[396540903,1765043459709,-151.0,0.00016712,2]
[396540904,1765043459718,-151.0,0.00016712,2]
[396540905,1765043459728,-151.0,0.00016712,2]
[396540906,1765043459737,-151.0,0.00016712,2]
[396540907,1765043459746,-3212.84,0.00016712,2]
[396540908,1765043459756,-250.669105,0.00016712,2]
[396540909,1765043459766,-3151.55,0.00016712,2]
[396540910,1765043459775,-2132.81,0.00016712,2]
[396540911,1765043459785,-656.75,0.00016712,2]
[396540912,1765043459795,-500.0,0.00016712,2]
[396540913,1765043459804,-500.0,0.00016712,2]
[396540914,1765043459813,-500.0,0.00016712,2]
[396540915,1765043459822,-528.07632206,0.00016712,2]
[396540916,1765043459831,-500.0,0.00016712,2]
[396540917,1765043459840,-500.0,0.00016712,2]
[396540918,1765043459849,-500.0,0.00016712,2]
[396540919,1765043459859,-500.0,0.00016712,2]
[396540920,1765043459868,-500.0,0.00016712,2]
[396540921,1765043459882,-500.0,0.00016712,2]
[396540922,1765043459891,-300.61178836,0.00016712,2]
[396540923,1765043459919,-199.38821164,0.00016712,2]
[396540924,1765043459929,-500.0,0.00016712,2]
[396540925,1765043459938,-500.0,0.00016712,2]
[396540926,1765043459948,-514.821104,0.00016712,2]
[396540927,1765043459957,-514.821104,0.00016712,2]
[396540928,1765043459968,-514.821104,0.00016712,2]
[396540929,1765043459977,-514.821104,0.00016712,2]
[396540930,1765043460078,-500.0,0.00016712,2]
[396540931,1765043460088,-514.821104,0.00016712,2]
[396540932,1765043460097,-514.821104,0.00016712,2]
[396540933,1765043460107,-500.0,0.00016712,2]
[396540934,1765043460116,-181.194027,0.00016712,2]
[396540935,1765043460126,-514.821104,0.00016712,2]
[396540936,1765043460136,-181.194027,0.00016712,2]
[396540937,1765043460145,-514.821104,0.00016712,2]
[396540938,1765043460153,-181.194027,0.00016712,2]
[396540939,1765043460162,-181.194027,0.00016712,2]
[396540940,1765043460172,-181.194027,0.00016712,2]
[396540941,1765043460182,-500.0,0.00016712,2]